[Event "Leca Open 2022"]
[Site "Leca da Palmeira"]
[Date "2022.08.02"]
[Round "5.12"]
[White "Balaji, Aaravamudhan"]
[Black "Marques, Ricardo Taborda Trig"]
[Result "1-0"]
[ECO "A07"]
[WhiteElo "2228"]
[BlackElo "1991"]
[Annotator "TA"]
[PlyCount "120"]
[EventDate "2022.08.02"]
[EventType "swiss"]
[EventCountry "POR"]
[SourceTitle "playchess.com"]
[Source "ChessBase"]
[SourceQuality "1"]
[TimeControl "5400+30"]

{[%evp 18,120,8,7,8,0,21,14,22,9,22,-26,-20,-25,-17,-55,-45,-55,-48,-62,-72,-77,-66,-91,-85,-117,-100,-178,-162,-152,0,0,50,44,56,52,68,73,70,83,116,111,126,40,37,0,0,6,7,0,0,0,0,4,10,18,70,1,2,4,13,8,35,42,67,76,180,131,179,135,125,120,139,140,184,153,248,137,288,289,375,224,215,189,359,310,437,437,437,437,437,437,437,437,401,323,337,332,322,308,365,393,420,421,702]} 1. d3 d5 2. b3 c6 3. Bb2 Nf6 4. Nf3 Bg4 5. Nbd2 e6 6. g3 Bd6 7. Bg2 Nbd7 8. h3 Bxf3 9. Nxf3 {[%emt 0:04:50]} O-O {[%emt 0:15:57]} 10. O-O {[%emt 0:00:32]} Qe7 {[%emt 0:00:40] A07: Réti Opening: New York and Capablanca Systems.} 11. c4 {[%emt 0:09:05]} Rfe8 {[%emt 0:05:07]} 12. Qc2 {[%emt 0:06:39]} Ba3 {[%emt 0:00:33] The position is equal.} 13. Bxa3 {[%emt 0:05:56]} Qxa3 {[%emt 0:00:09]} 14. e4 {[%emt 0:01:07]} (14. Rab1 {deserves consideration.}) 14... dxe4 $11 {[%emt 0:00:22]} 15. dxe4 {[%emt 0:00:03]} e5 {[%emt 0:00:09] [#]} 16. Nh4 $146 {[%emt 0:07:01]} ({Predecessor:} 16. Nd2 Nf8 17. Rad1 Ne6 18. Nb1 Qe7 19. Qb2 Nc5 20. Qe2 Rad8 21. Qe3 b6 22. Nc3 {½-½ (33) Tarkacs,G-Pfeiffer DDR 1984}) 16... g6 {[%emt 0:15:37]} 17. Kh2 {[%emt 0:16:56]} Qe7 {[%emt 0:02:20]} 18. Qd2 {[%emt 0:07:10]} Nc5 {[%emt 0:01:20]} 19. Rae1 {[%emt 0:00:46]} Rad8 {[%emt 0:05:56]} 20. Qh6 {[%emt 0:10:47]} Rd4 {[%emt 0:04:55]} 21. Re3 {[%emt 0:05:54]} a5 {[%emt 0:12:35]} (21... Nfxe4 $6 22. Nf3 f5 23. Nxd4 exd4 24. Re2 $11) 22. f4 {[%emt 0:03:46]} (22. Rfe1 $17 {is a better defense.}) 22... exf4 {[%emt 0:07:54]} (22... Ncxe4 23. Nf3 exf4 24. gxf4 $11) 23. Rxf4 {[%emt 0:00:29]} Ne6 $2 {[%emt 0:01:20] Pair of Knights!} (23... Ncxe4 24. Nf3 Qd8 25. Nxd4 Qxd4 26. Rexe4 $1 {[%mdl 512]} Rxe4 27. Rxf6 $16) ({Better is} 23... Nfxe4 $17 {And now ...Rd2 would win.} 24. Bxe4 Rxe4 25. Rfxe4 Nxe4) 24. Nf5 {[%emt 0:06:48]} gxf5 {[%emt 0:01:50]} (24... Qd7 $11) 25. exf5 $14 {[%emt 0:00:09][%mdl 64] Discovered Attack} Rxf4 {[%emt 0:00:36]} 26. gxf4 {[%emt 0:00:30]} Kh8 {[%emt 0:02:06]} 27. fxe6 {[%emt 0:03:46]} fxe6 {[%emt 0:00:07]} 28. Qg5 $1 {[%emt 0:00:20]} Rg8 {[%emt 0:07:44]} 29. Qxa5 {[%emt 0:03:52]} (29. Qh6 $2 Rg6 30. Qh4 {[#]} Ng4+ $1 {[%mdl 512]} 31. Qxg4 Rxg4 32. hxg4 Qh4+ 33. Rh3 Qxg4 $19) 29... Qg7 {[%emt 0:00:06][%csl Gg8][%cal Rg7g2]} 30. Qd2 {[%emt 0:00:11] Active counter play!} (30. Qg5 $1 $16) 30... Nh5 {[%emt 0:02:23]} 31. Re4 {[%emt 0:01:00]} Ng3 {[%emt 0:01:07][%cal Og3f1]} (31... e5 32. fxe5 Qg3+ 33. Kg1 $16 (33. Kh1 Qg7 $16)) 32. Re1 {[%emt 0:00:52] Prevents Nf1+.} Nh5 $1 $132 {[%emt 0:02:16][%cal Oh5f4][%mdl 2048] Black has counterplay} 33. Re4 {[%emt 0:00:13]} Ng3 {[%emt 0:00:42][%cal Og3f1]} (33... e5 34. fxe5 Qg3+ 35. Kg1 $16 (35. Kh1 Qg7 $16)) 34. Re1 {[%emt 0:00:02] Against Nf1+} Nh5 $1 {[%emt 0:01:54][%cal Oh5f4] Strongly threatening ...Nxf4!} 35. Rf1 {[%emt 0:00:00]} Ng3 {[%emt 0:00:30]} (35... e5 36. fxe5 Qg3+ 37. Kh1 $14) 36. Rf3 {[%emt 0:01:08]} Nh5 {[%emt 0:03:29]} (36... Nf5 $11) 37. Kg1 {[%emt 0:01:21]} (37. b4 $1 $14) 37... Qa1+ {[%emt 0:01:07]} (37... e5 38. fxe5 Qxe5 39. Re3 $16) 38. Rf1 {[%emt 0:00:36]} Qg7 {[%emt 0:00:20]} 39. Rf2 {[%emt 0:00:34]} Qa1+ {[%emt 0:00:27]} 40. Kh2 {[%emt 0:00:44]} Qg7 {[%emt 0:00:11]} 41. Qe3 {[%emt 0:00:53]} Qg6 {[%emt 0:00:34]} (41... Rf8 $16) 42. Rd2 {[%emt 0:01:28]} (42. a4 $18) 42... Nf6 {[%emt 0:00:52]} (42... Rf8 $16) 43. Qc3 {[%emt 0:02:32]} h5 {[%emt 0:00:20]} 44. Re2 {[%emt 0:01:19][%cal Bd2e2,Be2e5,Be5g5][%mdl 32]} Rg7 {[%emt 0:00:52]} 45. Qf3 {[%emt 0:00:21]} Kh7 {[%emt 0:01:15]} 46. Re5 {[%emt 0:00:45]} Qh6 {[%emt 0:01:54]} (46... Kg8 $16 47. Rg5 (47. Rxe6 Ng4+ 48. Qxg4 hxg4 $11) 47... Qf7) 47. Qd3+ {[%emt 0:01:37]} ({And not} 47. Rxe6 Ng4+ 48. hxg4 Qxe6 $11) ({White should try} 47. Qe3 $18) 47... Rg6 $2 {[%emt 0:01:17]} (47... Kg8 $16 {might work better.} 48. Qe3 (48. Rxe6 Ng4+ 49. hxg4 Qxe6 $11) 48... h4) 48. Rg5 $18 {[%emt 0:00:55]} (48. Rxe6 Qxf4+ 49. Kh1 Kh6 $16) 48... Kg7 {[%emt 0:01:10]} 49. Qe3 {[%emt 0:00:29]} (49. h4 $142) 49... Kf7 {[%emt 0:00:29]} 50. Qe5 {[%emt 0:00:38]} Ne8 {[%emt 0:00:40]} (50... Ke7 51. Qa5 h4 52. Qb4+ Ke8) 51. Rxh5 {[%emt 0:00:52]} Qf8 {[%emt 0:00:32]} (51... Qg7 $142 52. Bf3 Qxe5 53. fxe5 Ng7) 52. Be4 {[%emt 0:00:16]} (52. f5 exf5 53. Rxf5+ Rf6 $18) 52... Rg7 {[%emt 0:00:23]} 53. f5 {[%emt 0:00:52][%csl Gf5][%cal Re5e6]} ({Weaker is} 53. Rh6 Qd6 54. Bf3 Qxe5 55. fxe5 Rg5 56. Bh5+ Kf8 57. Bxe8 Kxe8 58. Rxe6+ Kf7 $18) 53... Qd6 {[%emt 0:00:14]} 54. fxe6+ {[%emt 0:00:14]} Ke7 {[%emt 0:00:09] ( -> ...Qd2+)} 55. Qxd6+ {[%emt 0:00:06]} Nxd6 {[%emt 0:00:05] KRB-KRN} 56. Bf3 {[%emt 0:00:42]} Kxe6 {[%emt 0:00:13]} 57. Bg4+ {[%emt 0:00:01]} Ke7 {[%emt 0:00:27]} 58. Re5+ {[%emt 0:00:12]} Kf7 {[%emt 0:00:25]} 59. a4 {[%emt 0:00:13] c5 is the strong threat.} Kf8 {[%emt 0:01:28]} 60. Bh5 {[%emt 0:00:17] aiming for c5.} Rd7 {[%emt 0:00:27] Quite a comeback for White.  Weighted Error Value: White=0.22 (precise) /Black=0.27 (precise)} (60... b6 $142 61. c5 bxc5 62. Rxc5 Rc7) 1-0

[Event "Leca Open 2022"]
[Site "Leca da Palmeira"]
[Date "2022.08.02"]
[Round "5.13"]
[White "Mahitosh Dey"]
[Black "Bhagat, Kush"]
[Result "1/2-1/2"]
[ECO "A48"]
[WhiteElo "2212"]
[BlackElo "1813"]
[Annotator "TA"]
[PlyCount "71"]
[EventDate "2022.08.02"]
[EventType "swiss"]
[EventCountry "POR"]
[SourceTitle "playchess.com"]
[Source "ChessBase"]
[SourceQuality "1"]
[TimeControl "5400+30"]

{[%evp 11,71,0,0,7,14,4,9,10,4,0,12,9,22,16,13,1,16,9,17,19,37,19,17,9,25,31,46,51,53,37,34,39,50,6,54,49,53,14,14,25,27,11,10,10,10,-18,0,0,0,-9,-5,-10,8,8,64,64,91,0,0,0,0,-6]} 1. d4 Nf6 2. Nf3 g6 3. Bf4 Bg7 4. c3 O-O 5. Nbd2 d6 6. e4 Nbd7 {[%cal Oe7e5]} 7. Qc2 {A48: 1 d4 Nf6 2 Nf3 g6: Torre, London and Colle Systems.} b6 8. Bc4 {[%emt 0:07:59]} Bb7 {[%emt 0:11:55][%cal Oe7e5]} 9. O-O {[%emt 0:01:02] [#]} e5 $146 {[%emt 0:08:33]} ({Predecessor:} 9... c5 10. d5 a6 11. a4 Ng4 12. h3 Nge5 13. Nxe5 Nxe5 14. Bxe5 dxe5 15. Rad1 Qc7 {½-½ (29) Gregor,J (1747)-Hrabal,M (2091) Czech Republic 2016}) 10. dxe5 {[%emt 0:00:09]} dxe5 {[%emt 0:00:05]} 11. Bg5 {[%emt 0:13:54][%cal Bf4g5,Bg5h4,Bh4g3][%mdl 32]} a5 {[%emt 0:10:28]} 12. a4 {[%emt 0:02:26]} Qe7 {[%emt 0:04:20]} 13. Rfe1 {[%emt 0:07:09]} h6 {[%emt 0:04:23]} 14. Bh4 {[%emt 0:00:33]} Kh8 {[%emt 0:08:18]} (14... Nc5 {is interesting.} 15. h3 Rfd8 16. b4 Na6) 15. h3 {[%emt 0:04:05]} Bc6 {[%emt 0:13:30]} 16. Nh2 {[%emt 0:09:05]} Nc5 {[%emt 0:13:11]} 17. Ng4 {[%emt 0:04:54][%cal Oc4d5]} g5 {[%emt 0:00:21]} (17... h5 $5 {[%cal Rh5g4]} 18. Bxf6 Bxf6 $11) 18. Nxf6 {[%emt 0:00:07]} Qxf6 {[%emt 0:00:09]} 19. Bg3 {[%emt 0:00:08]} Qg6 {[%emt 0:01:18]} 20. f3 {[%emt 0:00:53]} (20. b4 $5 {[%cal Rb4c5]} Ne6 21. Bb3 $11) 20... h5 {[%emt 0:02:21]} 21. b4 {[%emt 0:03:35]} Ne6 {[%emt 0:01:54]} 22. b5 {[%emt 0:01:55]} (22. Bxe6 $5 Qxe6 23. b5 $11) 22... Bb7 {[%emt 0:01:44]} (22... Bd7 $11 {feels stronger.}) 23. Bxe6 $14 {[%emt 0:01:09]} Qxe6 {[%emt 0:01:55]} 24. Qa2 {[%emt 0:00:29]} Qxa2 {[%emt 0:07:32]} 25. Rxa2 {[%emt 0:00:04]} Bc8 {[%emt 0:00:47]} 26. c4 {[%emt 0:02:50][%cal Oc4c5]} Be6 {[%emt 0:00:30]} 27. Rc2 {[%emt 0:00:05]} Rfd8 {[%emt 0:01:03]} 28. c5 {[%emt 0:01:49]} bxc5 {[%emt 0:00:47]} 29. Nc4 {[%emt 0:00:36]} f6 {[%emt 0:02:20]} 30. Rec1 {[%emt 0:00:16]} Bf8 {[%emt 0:01:12]} 31. Be1 {[%emt 0:00:22]} Bxc4 {[%emt 0:00:22]} 32. Rxc4 {[%emt 0:00:05]} c6 {[%emt 0:00:20]} (32... Rdc8 $11) 33. bxc6 {[%emt 0:01:05]} Rdc8 {[%emt 0:01:03]} 34. Rb1 {[%emt 0:00:03] White is more active.} (34. Rxc5 $16 Bxc5+ 35. Rxc5) 34... Rxc6 $11 {[%emt 0:00:49]} 35. Rb5 {[%emt 0:00:08]} Kg8 {[%emt 0:03:14]} 36. Bxa5 {Weighted Error Value: White=0.11 (very precise) /Black=0.10 (very precise)} 1/2-1/2

[Event "Leca Open 2022"]
[Site "Leca da Palmeira"]
[Date "2022.08.02"]
[Round "5.14"]
[White "Verma, Aditya"]
[Black "Garcia Dorado, Alberto"]
[Result "1/2-1/2"]
[ECO "B33"]
[WhiteElo "2114"]
[BlackElo "2206"]
[Annotator "TA"]
[PlyCount "62"]
[EventDate "2022.08.02"]
[EventType "swiss"]
[EventCountry "POR"]
[SourceTitle "playchess.com"]
[Source "ChessBase"]
[SourceQuality "1"]
[TimeControl "5400+30"]

{[%evp 18,62,17,-4,0,-20,-9,-20,-1,-31,0,-8,6,0,0,0,0,0,14,2,5,0,27,-10,39,36,33,42,37,33,40,38,47,26,32,12,14,13,80,29,81,68,65,60,58,59,87]} 1. e4 c5 2. Nf3 Nc6 3. d4 cxd4 4. Nxd4 Nf6 5. g3 d6 6. Nc3 {[%emt 0:01:27]} g6 {[%emt 0:12:29]} 7. Bg2 {[%emt 0:00:43]} Nxd4 {[%emt 0:01:28]} 8. Qxd4 {[%emt 0:00:06]} Bg7 {[%emt 0:00:07]} 9. O-O {[%emt 0:00:30]} O-O {[%emt 0:00:15]} 10. Qd1 {[%emt 0:01:32]} Bg4 {[%emt 0:00:25] B70: Sicilian Dragon: 6 g3 and 6 Be2 (without a later Be3).} 11. Qd3 {[%emt 0:05:39]} Rc8 {[%emt 0:03:08] [#]} 12. Re1 $146 {[%emt 0:04:34]} ({Predecessor:} 12. Bg5 Qa5 13. Bd2 Qc7 14. Rfe1 Rfd8 15. Rac1 a6 16. b3 b5 17. a4 b4 18. Nd1 {½-½ (34) Abdusattorov,N (2627)-Shevchenko,K (2592) Chess.com INT 2020}) 12... Qc7 {[%emt 0:02:18] The position is equal.} 13. h3 {[%emt 0:18:33]} Bd7 {[%emt 0:00:09]} 14. Be3 {[%emt 0:03:15]} a6 {[%emt 0:21:45]} 15. Rac1 {[%emt 0:03:30]} b5 {[%emt 0:02:09]} 16. Bd4 {[%emt 0:00:48]} e5 {[%emt 0:11:16] [#] Strongly threatening ...b4.} 17. Be3 {[%emt 0:00:55]} Be6 {[%emt 0:02:05]} 18. a3 {[%emt 0:03:44]} Rfd8 {[%emt 0:08:32]} 19. Qd2 {[%emt 0:06:46]} Nd7 {[%emt 0:07:01]} 20. Bg5 {[%emt 0:11:47]} f6 {[%emt 0:00:07]} (20... Bf6 $11) 21. Nd5 $14 {[%emt 0:00:05]} Bxd5 {[%emt 0:00:26]} 22. Qxd5+ {[%emt 0:01:47]} Kh8 {[%emt 0:01:13]} 23. Be3 {[%emt 0:01:27]} Nb6 $1 {[%emt 0:00:16]} 24. Bxb6 {[%emt 0:05:11]} Qxb6 {[%emt 0:10:21]} 25. c4 {[%emt 0:03:04]} Rc5 {[%emt 0:00:21]} 26. Qe6 {[%emt 0:03:39]} Qc7 27. Bf1 Rc6 {[%emt 0:01:12] [#]} (27... f5 $1 $11 {keeps the balance.}) 28. Qd5 {[%emt 0:02:21]} (28. Rc3 $1 $16) 28... Bh6 {[%emt 0:04:49]} (28... Rc5 $11 29. Qe6 f5) 29. Rc2 {[%emt 0:00:27]} Rc8 {[%cal Rb5c4] White is slightly better.} 30. b3 Kg7 31. Rd1 Qd8 {Weighted Error Value: White=0.12 (very precise) /Black=0.16 (very precise)} 1/2-1/2

[Event "Leca Open 2022"]
[Site "Leca da Palmeira"]
[Date "2022.08.02"]
[Round "5.15"]
[White "Rodriguez Lopez, Rafael"]
[Black "Areal, Maria  Beatriz"]
[Result "1-0"]
[ECO "B31"]
[WhiteElo "2172"]
[BlackElo "1479"]
[Annotator "TA"]
[PlyCount "45"]
[EventDate "2022.08.02"]
[EventType "swiss"]
[EventCountry "POR"]
[SourceTitle "playchess.com"]
[Source "ChessBase"]
[SourceQuality "1"]
[TimeControl "5400+30"]

{[%evp 18,45,37,18,54,30,56,35,75,60,106,104,95,94,105,117,128,124,460,452,775,696,910,928,896,920,804,751,713,648]} 1. e4 c5 2. Nf3 Nc6 3. Bb5 g6 4. Bxc6 dxc6 5. d3 Bg7 6. h3 Nf6 7. Nc3 O-O {[%emt 0:10:51]} 8. Be3 {[%emt 0:00:54]} b6 {[%emt 0:01:40]} 9. Qd2 {[%emt 0:00:06]} Re8 {[%emt 0:02:49]} 10. Bh6 {[%emt 0:00:30]} Bh8 {[%emt 0:00:42] B31: Sicilian: 2...Nc6 3 Bb5 g6.} 11. O-O {[%emt 0:03:40]} (11. e5 $5 {[%cal Re5f6]}) 11... Ba6 {[%emt 0:09:07] [#]} 12. a4 $146 {[%emt 0:01:43]} ({Predecessor:} 12. Rad1 e5 13. b3 Qc7 14. Nh2 Nh5 15. Ne2 Rad8 16. Qe3 Bc8 17. g4 Ng7 18. f4 exf4 19. Bxf4 {½-½ (78) Bologan,V (2686)-Malec,S (2210) Warsaw 2010}) 12... Qc8 {[%emt 0:04:48] White is slightly better.} 13. b3 {[%emt 0:02:57]} (13. e5 $5 {[%cal Re5f6]} Nd5 14. Rfe1 $16) 13... Rd8 {[%emt 0:05:42]} (13... Qc7 $14) 14. e5 $16 {[%emt 0:02:17]} Nd5 {[%emt 0:04:11]} 15. Ne4 {[%emt 0:00:19]} Qc7 {[%emt 0:04:44]} 16. Rae1 $36 {[%emt 0:01:15][%mdl 2048] Black is under strong pressure. 0x0.00144c1faa9adp-1022s more active pieces.} Nb4 {[%emt 0:05:19][%cal Ob4c2]} (16... Bxe5 $2 17. Nxe5 (17. Nxc5 Bc3 $14) 17... f6 18. Nc4 $18) 17. Neg5 {[%emt 0:01:20]} Bg7 $2 {[%emt 0:13:07][%mdl 8192] [#]} (17... Qc8 $16) 18. Qf4 $1 $18 {[%emt 0:02:50] White is clearly winning.} Rf8 {[%emt 0:01:21]} (18... Bf6 $142 19. Nxf7 Re8) (18... e6 19. Qh4) 19. Qh4 {[%emt 0:00:06]} f6 {[%emt 0:10:42]} 20. Bxg7 {[%emt 0:01:05][%csl Gg5][%cal Rh4h7]} fxg5 {[%emt 0:01:16] [#]} 21. Nxg5 $1 {[%emt 0:00:06][%csl Gg5][%cal Rh4h7]} h5 {[%emt 0:00:10]} 22. Bxf8 {[%emt 0:00:07]} Rxf8 {[%emt 0:00:47]} 23. Ne6 {[%emt 0:00:05][%csl LRc7,LRf8] White took control after the opening.  Weighted Error Value: White=0.08 (flawless) /Black=0.80} 1-0

[Event "Leca Open 2022"]
[Site "Leca da Palmeira"]
[Date "2022.08.03"]
[Round "6.1"]
[White "Martinez Duany, Lelys Stanley"]
[Black "Abdisalimov, Abdimalik"]
[Result "1/2-1/2"]
[ECO "D37"]
[WhiteElo "2497"]
[BlackElo "2437"]
[Annotator "TA"]
[PlyCount "60"]
[EventDate "2022.08.02"]
[EventType "swiss"]
[EventCountry "POR"]
[SourceTitle "playchess.com"]
[Source "ChessBase"]
[SourceQuality "1"]
[TimeControl "5400+30"]

{[%evp 22,60,17,0,26,19,21,11,20,14,30,31,26,23,29,33,34,27,27,27,22,31,24,23,35,7,13,0,0,0,7,0,0,0,0,0,0,0,0,-6,-6]} 1. Nf3 {[%emt 0:05:38]} d5 {[%emt 0:00:07]} 2. d4 {[%emt 0:00:21]} Nf6 {[%emt 0:00:07]} 3. c4 {[%emt 0:00:18]} e6 {[%emt 0:00:10]} 4. Nc3 {[%emt 0:00:45]} dxc4 {[%emt 0:00:10]} 5. e3 {[%emt 0:00:25]} a6 {[%emt 0:00:04]} 6. a4 {[%emt 0:00:51]} c5 {[%emt 0:03:08]} 7. Bxc4 {[%emt 0:00:11]} cxd4 {[%emt 0:00:32]} 8. exd4 {[%emt 0:00:13]} Nc6 {[%emt 0:00:11]} 9. O-O {[%emt 0:00:23]} Be7 {[%emt 0:00:27]} 10. Re1 {[%emt 0:00:45]} O-O {[%emt 0:00:56]} 11. Bg5 {[%emt 0:00:49] 11.Bf4 is the hot move.} Nb4 {[%emt 0:03:05]} 12. Ne5 {[%emt 0:01:43]} Nfd5 {[%emt 0:02:13] D27: Queen's Gambit Accepted: Classical main line: 7 e4!? and 7 a4.} 13. Bxe7 {[%emt 0:02:55]} Nxe7 {[%emt 0:00:28]} 14. Qb3 {[%emt 0:06:01]} a5 {[%emt 0:12:45]} 15. Rad1 {[%emt 0:01:10] [#]} b6 $146 {[%emt 0:02:58]} ({Predecessor:} 15... Ned5 16. Bxd5 exd5 17. Nd3 Bg4 18. f3 Nxd3 19. Rxd3 Be6 20. Re5 Ra6 21. Rde3 Rb6 {½-½ (40) Eperjesi,L (2350)-Peredy,F (2230) Budapest 1995}) 16. d5 {[%emt 0:08:04]} exd5 {[%emt 0:00:10]} 17. Nxd5 {[%emt 0:00:06]} ({Don't go for} 17. Bxd5 $2 Nexd5 18. Nxf7 (18. Nxd5 $2 Be6 $19) 18... Qf6 19. Nxd5 Nxd5 20. Nh6+ (20. Qxd5 $2 Qxf7 21. Qxa8 Bb7 $19) 20... Kh8 21. Qxd5 Ra7 $19) 17... Nexd5 {[%emt 0:00:05]} 18. Rxd5 {[%emt 0:00:36]} Nxd5 {[%emt 0:06:24]} 19. Bxd5 {[%emt 0:00:07][%cal Re5f7]} Ra7 {[%emt 0:01:20] [#] aiming for ...Re7.} 20. Nc6 {[%emt 0:00:36][%csl LRa7,LRd8] Against Re7} Qd7 {[%emt 0:02:13] ...Rc7 is the strong threat.} (20... Re8 $2 21. Re3 Rxe3 22. Qxe3 $18 (22. Nxd8 $2 Re1#)) 21. Nxa7 {[%emt 0:11:44]} Qxa7 {[%emt 0:00:08]} 22. Qe3 {[%emt 0:03:51]} Qd7 {[%emt 0:10:57]} 23. Qe4 {[%emt 0:02:52]} (23. Bb3 $5 {[%cal Re3b6]}) 23... Qd6 {[%emt 0:06:00] The position is equal.} 24. Bc4 {[%emt 0:01:10]} Bd7 {[%emt 0:03:42]} 25. b3 {[%emt 0:00:11]} Bc6 {[%emt 0:00:14]} 26. Qe5 {[%emt 0:05:27]} (26. Qe3 {looks sharper.} Qb4 27. Qe7 Qd2 28. h3) 26... Qxe5 {[%emt 0:00:19]} 27. Rxe5 {[%emt 0:00:09]} Rd8 {[%emt 0:00:02]} 28. f3 {[%emt 0:00:16]} Kf8 {[%emt 0:00:10] Prevents Re7.} 29. Kf2 {[%emt 0:00:07]} Rd2+ {[%emt 0:00:06]} 30. Re2 {[%emt 0:00:08]} Rxe2+ {[%emt 0:00:02] Weighted Error Value: White=0.06 (flawless) /Black=0.04 (flawless)} 1/2-1/2

[Event "Leca Open 2022"]
[Site "Leca da Palmeira"]
[Date "2022.08.03"]
[Round "6.2"]
[White "Das, Sayantan"]
[Black "Nigmatov, Ortik"]
[Result "0-1"]
[ECO "C77"]
[WhiteElo "2449"]
[BlackElo "2437"]
[Annotator "TA"]
[PlyCount "106"]
[EventDate "2022.08.02"]
[EventType "swiss"]
[EventCountry "POR"]
[SourceTitle "playchess.com"]
[Source "ChessBase"]
[SourceQuality "1"]
[TimeControl "5400+30"]

{[%evp 11,106,37,32,16,21,-26,2,-20,7,0,-4,0,2,0,0,-6,0,0,0,-25,0,0,0,0,0,0,0,-10,0,-5,21,4,28,0,9,0,8,0,18,12,18,12,19,16,16,7,12,4,10,0,196,194,195,193,235,175,180,169,204,73,73,82,89,70,89,53,62,17,14,19,15,25,75,16,35,5,67,62,62,0,0,0,0,0,31,0,100,77,97,18,37,0,0,-593,-525,-2651,-1364]} 1. e4 {[%emt 0:06:48]} e5 {[%emt 0:00:08]} 2. Nf3 {[%emt 0:00:16]} Nc6 {[%emt 0:00:06]} 3. Bb5 {[%emt 0:00:08]} a6 {[%emt 0:00:05]} 4. Ba4 {[%emt 0:00:11]} Nf6 {[%emt 0:00:06]} 5. d3 {[%emt 0:00:20]} d6 {[%emt 0:02:14]} 6. c3 {[%emt 0:00:59]} Bd7 {[%emt 0:01:05]} 7. Bg5 {[%emt 0:01:11] C77: Ruy Lopez: 3...a6 4 Ba4 Nf6, unusual lines.} h6 {[%emt 0:01:48]} 8. Bh4 {[%emt 0:00:21]} (8. Be3 {might be stronger.}) 8... Be7 {[%emt 0:06:36]} 9. Nbd2 {[%emt 0:03:33] The position is equal.} O-O {[%emt 0:05:01]} 10. O-O {[%emt 0:01:14]} b5 {[%emt 0:01:45]} 11. Bc2 {[%emt 0:02:26] [#]} Nh5 $146 {[%emt 0:09:33]} ({Predecessor:} 11... b4 12. a3 a5 13. h3 bxc3 14. bxc3 Rb8 15. Nc4 Rb5 16. Ba4 Rb7 17. Bxc6 Bxc6 18. Nxa5 {0-1 (31) Viereck,A-Boettner,J freechess.de 2020}) 12. Bg3 {[%emt 0:06:21]} Nxg3 {[%emt 0:02:26]} 13. hxg3 {[%emt 0:00:29]} Bf6 {[%emt 0:00:11]} 14. a4 {[%emt 0:03:10]} Qb8 {[%emt 0:03:11]} 15. Bb3 {[%emt 0:09:11]} Qb6 {[%emt 0:02:47]} 16. Bd5 {[%emt 0:14:53]} Rab8 {[%emt 0:00:58]} 17. axb5 {[%emt 0:01:05]} axb5 {[%emt 0:00:11]} 18. Re1 {[%emt 0:01:08]} Ne7 {[%emt 0:02:13]} 19. Bb3 {[%emt 0:00:09]} Nc6 {[%emt 0:15:53]} 20. Nf1 {[%emt 0:01:42]} Na5 {[%emt 0:01:59]} 21. Ne3 {[%emt 0:01:25]} c6 {[%emt 0:00:14] Prevents Nd5.} 22. Ba2 {[%emt 0:09:01][%cal Bb3a2,Ba2b1,Bb1f5][%mdl 32]} b4 {[%emt 0:00:38]} 23. d4 {[%emt 0:01:06] Black must now prevent dxe5.} Rfd8 {[%emt 0:06:19]} 24. g4 {[%emt 0:07:35]} exd4 {[%emt 0:09:41]} 25. cxd4 {[%emt 0:05:55]} b3 {[%emt 0:00:05]} 26. Bb1 {[%emt 0:00:04]} Qb4 {[%emt 0:00:08]} 27. Qe2 {[%emt 0:04:33]} Be6 {[%emt 0:02:03]} 28. e5 {[%emt 0:05:50]} dxe5 {[%emt 0:00:06]} 29. dxe5 {[%emt 0:00:04]} Bg5 {[%emt 0:04:21]} 30. Bf5 {[%emt 0:04:06]} Qb5 $2 {[%emt 0:07:46]} (30... Bxe3 $11 {and Black is okay.} 31. Qxe3 Nc4) 31. Nxg5 $18 {[%emt 0:03:17]} hxg5 {[%emt 0:00:11]} 32. Qf3 {[%emt 0:00:48] Hoping for Qh3.} Re8 {[%emt 0:01:46]} 33. Bxe6 {[%emt 0:02:22]} fxe6 {[%emt 0:08:13]} 34. Qe4 {[%emt 0:00:17]} Nb7 {[%emt 0:00:16] [#]} 35. Nc4 {[%emt 0:02:39]} (35. Nf1 $1 $18 {and White stays clearly on top.}) 35... Qd5 $16 {[%emt 0:00:38]} 36. Qe2 {[%emt 0:00:17]} Rbd8 {[%emt 0:00:33]} 37. Rac1 {[%emt 0:01:17]} Qd3 {[%emt 0:03:39]} 38. Rc3 {[%emt 0:00:31]} Qd4 {[%emt 0:01:12]} 39. Qe4 {[%emt 0:01:59]} (39. Rf1 {is interesting.} Rf8 40. Rxb3 Nc5 41. Rc3) 39... Qxe4 {[%emt 0:00:43]} 40. Rxe4 {[%emt 0:00:02]} Rd1+ {[%emt 0:00:13]} 41. Kh2 {[%emt 0:00:01]} Red8 {[%emt 0:01:37]} (41... Nc5 $11 {remains equal.} 42. Re2 Rd3) 42. Ree3 {[%emt 0:01:11]} (42. Ne3 $16 R1d2 43. Rb4) 42... R8d4 {[%emt 0:00:48]} 43. f3 {[%emt 0:00:33]} (43. Kg3 {feels hotter.} Kh7 44. Kf3 Rf4+ 45. Ke2) 43... Kh7 {[%emt 0:00:32]} (43... Nc5 $1 $11) 44. Re2 $1 $14 {[%emt 0:01:18][%cal Oc3b3]} ({Much worse is} 44. Rxb3 Rxc4 45. Rxb7 Rc2 $11) 44... R1d3 {[%emt 0:00:43]} 45. Re3 {[%emt 0:00:28]} (45. Rxd3 $14 Rxd3 46. Re3 Rxe3 47. Nxe3) 45... Rxe3 $11 {[%emt 0:01:21]} 46. Nxe3 {[%emt 0:00:03][%mdl 4096] Endgame KRN-KRN} Na5 {[%emt 0:00:03]} 47. Rc5 {[%emt 0:01:07]} Ra4 {[%emt 0:00:01]} 48. Kg3 {[%emt 0:00:24]} Ra2 {[%emt 0:00:32]} (48... Ra1 $1 $11) 49. Nd1 $16 {[%emt 0:00:13]} Ra1 {[%emt 0:00:26] [#] Strongly threatening ...Nb7.} 50. Nf2 {[%emt 0:00:32]} (50. Nc3 $1 $16) 50... Kg6 {[%emt 0:00:44]} 51. Ne4 {[%emt 0:00:42]} Ra2 {[%emt 0:00:31]} 52. Nf2 $2 {[%emt 0:00:35][%mdl 8192] [#]} (52. Kh2 $11 {and White stays safe.}) 52... Rxb2 $1 $19 {[%emt 0:00:33]} 53. Rxa5 {[%emt 0:00:38]} (53. Rc1 Rc2) 53... Ra2 {[%emt 0:00:19] What a bad dream for White.  Weighted Error Value: White=0.50/Black=0.21 (precise)} 0-1